[Event "*** Titled Tuesday Blitz"]
[Site "Chess.com"]
[Date "2021.04.27"]
[Round "2"]
[White "tgpgoat"]
[Black "WiktoriaPOL"]
[Result "0-1"]
[WhiteElo "2347"]
[BlackElo "2046"]
[TimeControl "180+1"]
[EndTime "10:18:05 PDT"]
[Termination "WiktoriaPOL won by resignation"]

1. e4 {[%clk 0:03:00.9]} 1... c5 {[%clk 0:02:58.2]} 2. Nf3 {[%clk 0:03:00.9]}
2... d6 {[%clk 0:02:58.4]} 3. d4 {[%clk 0:03:00.9]} 3... cxd4 {[%clk 0:02:59.3]}
4. Nxd4 {[%clk 0:03:01.6]} 4... Nf6 {[%clk 0:02:59.4]} 5. Nc3 {[%clk 0:03:00.7]}
5... a6 {[%clk 0:02:58.7]} 6. Be3 {[%clk 0:02:59]} 6... e5 {[%clk 0:02:58.2]} 7.
Nb3 {[%clk 0:02:58.7]} 7... Be6 {[%clk 0:02:57.3]} 8. f3 {[%clk 0:02:58]} 8...
Nbd7 {[%clk 0:02:56.6]} 9. Qd2 {[%clk 0:02:57.9]} 9... b5 {[%clk 0:02:55.7]} 10.
O-O-O {[%clk 0:02:57.8]} 10... Be7 {[%clk 0:02:53.9]} 11. g4 {[%clk 0:02:57.1]}
11... Nb6 {[%clk 0:02:47.2]} 12. g5 {[%clk 0:02:54.2]} 12... Nfd7 {[%clk
0:02:45.8]} 13. h4 {[%clk 0:02:53.4]} 13... Nc4 {[%clk 0:02:44.5]} 14. Bxc4
{[%clk 0:02:50.5]} 14... bxc4 {[%clk 0:02:45.4]} 15. Na1 {[%clk 0:02:50.5]}
15... a5 {[%clk 0:02:27.2]} 16. h5 {[%clk 0:02:46.7]} 16... a4 {[%clk
0:02:25.1]} 17. a3 {[%clk 0:02:36.4]} 17... Qc7 {[%clk 0:02:16.8]} 18. g6 {[%clk
0:02:15.4]} 18... fxg6 {[%clk 0:02:14.2]} 19. hxg6 {[%clk 0:02:15.1]} 19... h6
{[%clk 0:02:10.1]} 20. f4 {[%clk 0:02:11]} 20... Qb7 {[%clk 0:01:53.5]} 21. f5
{[%clk 0:01:54]} 21... Bg8 {[%clk 0:01:52.5]} 22. Nd5 {[%clk 0:01:34.5]} 22...
Rb8 {[%clk 0:01:44.9]} 23. c3 {[%clk 0:01:12.5]} 23... Bxd5 {[%clk 0:01:42]} 24.
exd5 {[%clk 0:01:13.4]} 24... Nf6 {[%clk 0:01:37.5]} 25. Rh2 {[%clk 0:01:07.9]}
25... Ne4 {[%clk 0:01:33.5]} 26. Qc2 {[%clk 0:01:05.9]} 26... Ng5 {[%clk
0:01:12.3]} 27. Qxa4+ {[%clk 0:01:02]} 27... Kf8 {[%clk 0:01:11.4]} 28. Qxc4
{[%clk 0:00:56.1]} 28... Nf3 {[%clk 0:01:06.1]} 29. Rc2 {[%clk 0:00:54.2]} 29...
h5 {[%clk 0:01:04.2]} 30. Qe4 {[%clk 0:00:49]} 30... Ng5 {[%clk 0:01:01.8]} 31.
Qg2 {[%clk 0:00:32.9]} 31... h4 {[%clk 0:00:56.2]} 32. Bxg5 {[%clk 0:00:31.8]}
32... h3 {[%clk 0:00:54.6]} 33. Qg3 {[%clk 0:00:27.1]} 33... Bxg5+ {[%clk
0:00:47.1]} 34. Qxg5 {[%clk 0:00:28]} 34... h2 {[%clk 0:00:46.9]} 35. Rh1 {[%clk
0:00:27.6]} 35... Qxd5 {[%clk 0:00:44.9]} 36. Qg2 {[%clk 0:00:23.4]} 36... Qd3
{[%clk 0:00:37.2]} 37. Rd1 {[%clk 0:00:16.8]} 37... Qxd1+ {[%clk 0:00:33.1]} 38.
Kxd1 {[%clk 0:00:16.8]} 38... h1=Q+ {[%clk 0:00:33.4]} 39. Qxh1 {[%clk
0:00:13.5]} 39... Rxh1+ {[%clk 0:00:34.3]} 40. Kd2 {[%clk 0:00:12]} 40... Rxa1
{[%clk 0:00:34.2]} 0-1

[Event "*** Titled Tuesday Blitz"]
[Site "Chess.com"]
[Date "2021.04.27"]
[Round "2"]
[White "Zhigalko_Sergei"]
[Black "StockholmMissile"]
[Result "1-0"]
[WhiteElo "2938"]
[BlackElo "2596"]
[TimeControl "180+1"]
[EndTime "10:18:06 PDT"]
[Termination "Zhigalko_Sergei won by resignation"]

1. e4 {[%clk 0:03:00.9]} 1... e5 {[%clk 0:02:58.8]} 2. Nf3 {[%clk 0:03:00.8]}
2... Nc6 {[%clk 0:02:58.4]} 3. Bc4 {[%clk 0:02:59.2]} 3... Bc5 {[%clk
0:02:57.6]} 4. b4 {[%clk 0:02:59.3]} 4... Bxb4 {[%clk 0:02:57.6]} 5. c3 {[%clk
0:02:59.5]} 5... Ba5 {[%clk 0:02:57.7]} 6. d4 {[%clk 0:02:57.2]} 6... exd4
{[%clk 0:02:57.8]} 7. O-O {[%clk 0:02:56.5]} 7... Nge7 {[%clk 0:02:54.3]} 8. Ng5
{[%clk 0:02:56.3]} 8... d5 {[%clk 0:02:50.3]} 9. Nxf7 {[%clk 0:02:53.5]} 9...
Kxf7 {[%clk 0:02:48.1]} 10. exd5 {[%clk 0:02:53.1]} 10... Ne5 {[%clk 0:02:46.7]}
11. Bb3 {[%clk 0:02:52.4]} 11... Kf8 {[%clk 0:02:25.6]} 12. Qxd4 {[%clk
0:02:01.6]} 12... Nf7 {[%clk 0:02:20.9]} 13. Ba3 {[%clk 0:01:54.9]} 13... Nd6
{[%clk 0:02:15]} 14. Re1 {[%clk 0:01:52.1]} 14... Nef5 {[%clk 0:02:06]} 15. Qf4
{[%clk 0:01:25.1]} 15... Qf6 {[%clk 0:02:02.1]} 16. Nd2 {[%clk 0:01:24.4]} 16...
Qh6 {[%clk 0:01:21.1]} 17. Qa4 {[%clk 0:01:21.5]} 17... Kf7 {[%clk 0:01:03.2]}
18. Ne4 {[%clk 0:00:48.5]} 18... Bb6 {[%clk 0:00:53.6]} 19. Bc1 {[%clk
0:00:46.8]} 19... Qh4 {[%clk 0:00:44.9]} 20. Bg5 {[%clk 0:00:44]} 20... Bxf2+
{[%clk 0:00:24.6]} 21. Kf1 {[%clk 0:00:44.1]} 21... Qxh2 {[%clk 0:00:14.5]} 22.
Kxf2 {[%clk 0:00:38.4]} 22... Rf8 {[%clk 0:00:14.3]} 23. Nxd6+ {[%clk
0:00:17.1]} 23... Nxd6 {[%clk 0:00:08]} 24. Be7 {[%clk 0:00:17.6]} 24... Re8
{[%clk 0:00:05.3]} 25. Bxd6 {[%clk 0:00:12.1]} 25... Rxe1 {[%clk 0:00:04]} 26.
Bxh2 {[%clk 0:00:07.8]} 1-0

[Event "*** Titled Tuesday Blitz"]
[Site "Chess.com"]
[Date "2021.04.27"]
[Round "2"]
[White "Steven_Rojas"]
[Black "blitzking1729"]
[Result "0-1"]
[WhiteElo "2466"]
[BlackElo "2671"]
[TimeControl "180+1"]
[EndTime "10:18:06 PDT"]
[Termination "blitzking1729 won on time"]

1. d4 {[%clk 0:03:00.9]} 1... d5 {[%clk 0:02:58.5]} 2. c4 {[%clk 0:03:01.1]}
2... e6 {[%clk 0:02:58.1]} 3. Nc3 {[%clk 0:02:58.4]} 3... c5 {[%clk 0:02:57.1]}
4. cxd5 {[%clk 0:02:51.9]} 4... exd5 {[%clk 0:02:58]} 5. Nf3 {[%clk 0:02:50]}
5... Nc6 {[%clk 0:02:58]} 6. Bg5 {[%clk 0:02:41.4]} 6... Nf6 {[%clk 0:02:52.8]}
7. Bxf6 {[%clk 0:02:28.6]} 7... gxf6 {[%clk 0:02:52.2]} 8. e3 {[%clk 0:02:27.2]}
8... Be6 {[%clk 0:02:50.1]} 9. g3 {[%clk 0:02:20]} 9... Qb6 {[%clk 0:02:43.5]}
10. Qd2 {[%clk 0:02:16.1]} 10... cxd4 {[%clk 0:02:23.8]} 11. exd4 {[%clk
0:02:15.1]} 11... h5 {[%clk 0:02:22]} 12. Na4 {[%clk 0:01:30]} 12... Qb4 {[%clk
0:02:11.9]} 13. Nc3 {[%clk 0:01:08.2]} 13... Bh6 {[%clk 0:02:03.3]} 14. Qc2
{[%clk 0:01:08.4]} 14... Nxd4 {[%clk 0:01:50.1]} 15. Nxd4 {[%clk 0:01:07]} 15...
Qxd4 {[%clk 0:01:49.8]} 16. Bb5+ {[%clk 0:01:07.1]} 16... Kf8 {[%clk 0:01:47.6]}
17. O-O {[%clk 0:01:06.5]} 17... Rc8 {[%clk 0:01:45.3]} 18. Rad1 {[%clk
0:01:04.6]} 18... Qc5 {[%clk 0:01:39.9]} 19. Qd3 {[%clk 0:01:04.9]} 19... Rd8
{[%clk 0:01:24.4]} 20. Ba4 {[%clk 0:00:47.4]} 20... Kg7 {[%clk 0:01:09.2]} 21.
Bb3 {[%clk 0:00:46.2]} 21... d4 {[%clk 0:01:06.3]} 22. Ne4 {[%clk 0:00:43.3]}
22... Qf5 {[%clk 0:01:00.6]} 23. Bxe6 {[%clk 0:00:21.7]} 23... fxe6 {[%clk
0:00:57.9]} 24. Rfe1 {[%clk 0:00:20.9]} 24... e5 {[%clk 0:00:57.1]} 25. Qb5
{[%clk 0:00:20.2]} 25... Qd7 {[%clk 0:00:55.6]} 26. Qb3 {[%clk 0:00:15.6]} 26...
Qf7 {[%clk 0:00:54.2]} 27. Qa3 {[%clk 0:00:12.2]} 27... b6 {[%clk 0:00:40.5]}
28. Nd6 {[%clk 0:00:06.2]} 28... Qd7 {[%clk 0:00:39.2]} 29. Ne4 {[%clk
0:00:06.1]} 29... Rhe8 {[%clk 0:00:37.6]} 30. Qf3 {[%clk 0:00:05.4]} 30... Qf7
{[%clk 0:00:34.2]} 31. Rd3 {[%clk 0:00:02.9]} 31... f5 {[%clk 0:00:32.9]} 32.
Nd2 {[%clk 0:00:02.8]} 32... e4 {[%clk 0:00:32.2]} 0-1

[Event "*** Titled Tuesday Blitz"]
[Site "Chess.com"]
[Date "2021.04.27"]
[Round "2"]
[White "HonzaVykouk"]
[Black "ArjunErigaisi2003"]
[Result "0-1"]
[WhiteElo "2579"]
[BlackElo "2884"]
[TimeControl "180+1"]
[EndTime "10:18:09 PDT"]
[Termination "ArjunErigaisi2003 won by checkmate"]

1. e4 {[%clk 0:03:00.9]} 1... d6 {[%clk 0:02:59.9]} 2. d4 {[%clk 0:03:00.7]}
2... g6 {[%clk 0:03:00.4]} 3. Nc3 {[%clk 0:03:00.9]} 3... Bg7 {[%clk 0:03:01]}
4. Be3 {[%clk 0:03:01.6]} 4... a6 {[%clk 0:03:00.4]} 5. h4 {[%clk 0:03:01.4]}
5... h6 {[%clk 0:02:59.5]} 6. h5 {[%clk 0:03:00.6]} 6... g5 {[%clk 0:02:59.6]}
7. Qd2 {[%clk 0:03:01.3]} 7... b5 {[%clk 0:02:59.3]} 8. O-O-O {[%clk 0:03:01.8]}
8... Bb7 {[%clk 0:02:59.4]} 9. f3 {[%clk 0:03:02.4]} 9... e6 {[%clk 0:02:58.4]}
10. Nh3 {[%clk 0:03:02.8]} 10... Ne7 {[%clk 0:02:58.1]} 11. Nf2 {[%clk
0:03:03.3]} 11... Nd7 {[%clk 0:02:49.6]} 12. Kb1 {[%clk 0:03:02.9]} 12... f5
{[%clk 0:02:46.2]} 13. exf5 {[%clk 0:03:01.6]} 13... exf5 {[%clk 0:02:47.1]} 14.
Bd3 {[%clk 0:02:51.5]} 14... f4 {[%clk 0:02:42.9]} 15. Bxf4 {[%clk 0:02:48]}
15... gxf4 {[%clk 0:02:43.8]} 16. Qxf4 {[%clk 0:02:48.6]} 16... Rf8 {[%clk
0:02:27.3]} 17. Qg4 {[%clk 0:02:45.7]} 17... Rf7 {[%clk 0:02:15]} 18. Rde1
{[%clk 0:02:17.1]} 18... Kf8 {[%clk 0:02:14.8]} 19. Ne2 {[%clk 0:01:51.7]} 19...
Nf6 {[%clk 0:02:00.2]} 20. Qg3 {[%clk 0:01:51]} 20... Nfd5 {[%clk 0:01:54]} 21.
Ng4 {[%clk 0:01:32.1]} 21... Qd7 {[%clk 0:01:43.9]} 22. Bg6 {[%clk 0:00:58.2]}
22... Nf5 {[%clk 0:01:42.9]} 23. Qh3 {[%clk 0:00:53]} 23... Re7 {[%clk
0:01:42.9]} 24. Ng3 {[%clk 0:00:43.1]} 24... Nxd4 {[%clk 0:01:28.8]} 25. Rxe7
{[%clk 0:00:17.6]} 25... Qxe7 {[%clk 0:01:29.7]} 26. c3 {[%clk 0:00:13.2]} 26...
Ne2 {[%clk 0:01:23.3]} 27. Nf5 {[%clk 0:00:12.1]} 27... Nexc3+ {[%clk
0:01:23.2]} 28. bxc3 {[%clk 0:00:11]} 28... Nxc3+ {[%clk 0:01:24.1]} 29. Kc1
{[%clk 0:00:06.3]} 29... Nxa2+ {[%clk 0:01:22.5]} 30. Kb1 {[%clk 0:00:04.8]}
30... Nc3+ {[%clk 0:01:21.7]} 31. Kc1 {[%clk 0:00:05.2]} 31... Qg5+ {[%clk
0:01:07.2]} 32. f4 {[%clk 0:00:02.5]} 32... Qxf4+ {[%clk 0:01:06.9]} 33. Kc2
{[%clk 0:00:03.1]} 33... Be4+ {[%clk 0:01:06.3]} 34. Kb3 {[%clk 0:00:03.6]}
34... Bd5+ {[%clk 0:01:03.4]} 35. Kc2 {[%clk 0:00:04.2]} 35... Be4+ {[%clk
0:00:58.5]} 36. Kb3 {[%clk 0:00:04.4]} 36... Bxf5 {[%clk 0:00:59.1]} 37. Bxf5
{[%clk 0:00:04.1]} 37... Qa4+ {[%clk 0:00:57.9]} 38. Kb2 {[%clk 0:00:03.8]}
38... Ne2+ {[%clk 0:00:53.9]} 39. Kb1 {[%clk 0:00:02.9]} 39... Qa1+ {[%clk
0:00:52.6]} 40. Kc2 {[%clk 0:00:03.2]} 40... Qb2+ {[%clk 0:00:53.5]} 41. Kd3
{[%clk 0:00:02.8]} 41... Nf4+ {[%clk 0:00:53.7]} 42. Ke4 {[%clk 0:00:03.2]}
42... Nxh3 {[%clk 0:00:54.6]} 43. gxh3 {[%clk 0:00:02.9]} 43... Qc2+ {[%clk
0:00:53]} 44. Kf3 {[%clk 0:00:03.4]} 44... Qxf5+ {[%clk 0:00:52.8]} 45. Kg3
{[%clk 0:00:04.3]} 45... Be5+ {[%clk 0:00:52.8]} 46. Kh4 {[%clk 0:00:04.5]}
46... Qg5# {[%clk 0:00:52.9]} 0-1

[Event "*** Titled Tuesday Blitz"]
[Site "Chess.com"]
[Date "2021.04.27"]
[Round "2"]
[White "vovachesss"]
[Black "Homino"]
[Result "0-1"]
[WhiteElo "2619"]
[BlackElo "2338"]
[TimeControl "180+1"]
[EndTime "10:18:12 PDT"]
[Termination "Homino won by resignation"]

1. e4 {[%clk 0:03:00.9]} 1... c5 {[%clk 0:02:59.6]} 2. Nf3 {[%clk 0:02:54.6]}
2... Nc6 {[%clk 0:02:59.8]} 3. Nc3 {[%clk 0:02:50.8]} 3... g6 {[%clk 0:02:59.6]}
4. g3 {[%clk 0:02:49]} 4... Bg7 {[%clk 0:02:59.3]} 5. Bg2 {[%clk 0:02:49.6]}
5... e6 {[%clk 0:02:59.5]} 6. O-O {[%clk 0:02:50.1]} 6... Nge7 {[%clk
0:02:59.7]} 7. d3 {[%clk 0:02:49.7]} 7... O-O {[%clk 0:03:00]} 8. Be3 {[%clk
0:02:49.9]} 8... b6 {[%clk 0:02:55.8]} 9. Qd2 {[%clk 0:02:49.7]} 9... d5 {[%clk
0:02:55.6]} 10. exd5 {[%clk 0:02:50]} 10... Nxd5 {[%clk 0:02:53.9]} 11. Bh6
{[%clk 0:02:50.6]} 11... Nxc3 {[%clk 0:02:50.9]} 12. bxc3 {[%clk 0:02:50.1]}
12... Bb7 {[%clk 0:02:48.2]} 13. Rfe1 {[%clk 0:02:48.7]} 13... Ne7 {[%clk
0:02:31.5]} 14. Bxg7 {[%clk 0:02:39.8]} 14... Kxg7 {[%clk 0:02:32.4]} 15. h4
{[%clk 0:02:38.1]} 15... h5 {[%clk 0:02:31.6]} 16. c4 {[%clk 0:02:33.7]} 16...
Nf5 {[%clk 0:02:25.1]} 17. Ng5 {[%clk 0:02:25.1]} 17... Bxg2 {[%clk 0:02:22.6]}
18. Kxg2 {[%clk 0:02:26]} 18... Qc7 {[%clk 0:02:12.6]} 19. Rxe6 {[%clk
0:01:20.3]} 19... Qb7+ {[%clk 0:01:51.3]} 20. Re4 {[%clk 0:01:20.3]} 20... Nd6
{[%clk 0:01:37.9]} 21. Qc3+ {[%clk 0:01:16.7]} 21... Kh6 {[%clk 0:00:27.7]} 22.
Qf6 {[%clk 0:00:50.2]} 22... Nxe4 {[%clk 0:00:24]} 23. Nxe4 {[%clk 0:00:28.5]}
23... Rae8 {[%clk 0:00:23.9]} 24. Kg1 {[%clk 0:00:18]} 24... Rxe4 {[%clk
0:00:18.9]} 25. dxe4 {[%clk 0:00:16.9]} 25... Qxe4 {[%clk 0:00:19.8]} 26. Rd1
{[%clk 0:00:11.3]} 26... Qxc2 {[%clk 0:00:18.2]} 27. Rd7 {[%clk 0:00:09.3]}
27... Qb1+ {[%clk 0:00:17.8]} 28. Kh2 {[%clk 0:00:08.4]} 28... Qf5 {[%clk
0:00:16.6]} 29. Qb2 {[%clk 0:00:03.5]} 29... Qxd7 {[%clk 0:00:15.7]} 30. Qd2+
{[%clk 0:00:02.2]} 30... Qxd2 {[%clk 0:00:15.3]} 0-1

[Event "*** Titled Tuesday Blitz"]
[Site "Chess.com"]
[Date "2021.04.27"]
[Round "2"]
[White "djano"]
[Black "827883"]
[Result "1-0"]
[WhiteElo "2477"]
[BlackElo "2268"]
[TimeControl "180+1"]
[EndTime "10:18:12 PDT"]
[Termination "djano won by resignation"]

1. e4 {[%clk 0:03:00.9]} 1... e5 {[%clk 0:02:59.6]} 2. Nf3 {[%clk 0:02:59.9]}
2... Nc6 {[%clk 0:02:58.7]} 3. Bb5 {[%clk 0:02:59]} 3... a6 {[%clk 0:02:58.9]}
4. Ba4 {[%clk 0:02:58.1]} 4... Nf6 {[%clk 0:02:59]} 5. O-O {[%clk 0:02:54.5]}
5... Be7 {[%clk 0:02:59.7]} 6. Bxc6 {[%clk 0:02:53.7]} 6... dxc6 {[%clk
0:02:59.7]} 7. d3 {[%clk 0:02:54.3]} 7... Bd6 {[%clk 0:02:50.3]} 8. Nbd2 {[%clk
0:02:54.5]} 8... O-O {[%clk 0:02:50.5]} 9. Nc4 {[%clk 0:02:53.2]} 9... Re8
{[%clk 0:02:27]} 10. Bg5 {[%clk 0:02:42]} 10... h6 {[%clk 0:02:27.1]} 11. Bh4
{[%clk 0:02:42]} 11... Qe7 {[%clk 0:02:16.5]} 12. h3 {[%clk 0:02:36.1]} 12...
Qe6 {[%clk 0:02:08.9]} 13. a4 {[%clk 0:02:21.2]} 13... b6 {[%clk 0:01:55.4]} 14.
Qd2 {[%clk 0:02:19.2]} 14... Nh5 {[%clk 0:01:49.1]} 15. Bg3 {[%clk 0:01:53.1]}
15... f6 {[%clk 0:01:22.4]} 16. Ne3 {[%clk 0:01:45.7]} 16... Qf7 {[%clk
0:01:20.4]} 17. Bh2 {[%clk 0:01:42.1]} 17... Be6 {[%clk 0:01:11.1]} 18. Kh1
{[%clk 0:01:40.7]} 18... Kh8 {[%clk 0:01:05.8]} 19. c4 {[%clk 0:01:40.6]} 19...
c5 {[%clk 0:01:02.8]} 20. a5 {[%clk 0:01:40.7]} 20... b5 {[%clk 0:00:55.6]} 21.
cxb5 {[%clk 0:01:39.3]} 21... axb5 {[%clk 0:00:56]} 22. g4 {[%clk 0:01:26.8]}
22... Nf4 {[%clk 0:00:55.8]} 23. Bxf4 {[%clk 0:01:26.7]} 23... exf4 {[%clk
0:00:56.7]} 24. Nf5 {[%clk 0:01:27.3]} 24... g6 {[%clk 0:00:42.7]} 25. Nxd6
{[%clk 0:01:25.9]} 25... cxd6 {[%clk 0:00:42.9]} 26. Qxf4 {[%clk 0:01:26.5]}
26... Kg7 {[%clk 0:00:37.9]} 27. d4 {[%clk 0:01:22.2]} 27... Bc4 {[%clk
0:00:35.7]} 28. Rfe1 {[%clk 0:01:21.4]} 28... cxd4 {[%clk 0:00:34.1]} 29. Qxd6
{[%clk 0:01:13.8]} 29... d3 {[%clk 0:00:34.2]} 30. a6 {[%clk 0:01:06.7]} 30...
Ra7 {[%clk 0:00:33.4]} 31. b3 {[%clk 0:00:59]} 31... Re6 {[%clk 0:00:32.9]} 32.
Qc5 {[%clk 0:00:55.7]} 32... Bxb3 {[%clk 0:00:32.3]} 33. Nd4 {[%clk 0:00:52.8]}
33... Bc4 {[%clk 0:00:29.3]} 34. Nxe6+ {[%clk 0:00:52.1]} 34... Bxe6 {[%clk
0:00:30.2]} 35. Qxb5 {[%clk 0:00:49.7]} 35... d2 {[%clk 0:00:28.5]} 36. Red1
{[%clk 0:00:49]} 36... h5 {[%clk 0:00:27.4]} 37. f3 {[%clk 0:00:42.4]} 37...
hxg4 {[%clk 0:00:27.4]} 38. hxg4 {[%clk 0:00:43.1]} 38... g5 {[%clk 0:00:27.8]}
39. Rxd2 {[%clk 0:00:40.2]} 39... Qg6 {[%clk 0:00:26.8]} 40. Qb6 {[%clk
0:00:37.5]} 40... Rf7 {[%clk 0:00:26.3]} 41. a7 {[%clk 0:00:37.1]} 41... Rf8
{[%clk 0:00:21]} 42. Qxe6 {[%clk 0:00:36]} 42... Rh8+ {[%clk 0:00:20.2]} 43. Rh2
{[%clk 0:00:35.6]} 43... Qh6 {[%clk 0:00:21.1]} 44. Rxh6 {[%clk 0:00:35.1]} 1-0

[Event "*** Titled Tuesday Blitz"]
[Site "Chess.com"]
[Date "2021.04.27"]
[Round "2"]
[White "MarkoPe"]
[Black "IANOV0007"]
[Result "0-1"]
[WhiteElo "2264"]
[BlackElo "2466"]
[TimeControl "180+1"]
[EndTime "10:18:14 PDT"]
[Termination "IANOV0007 won on time"]

1. e4 {[%clk 0:02:59.2]} 1... d6 {[%clk 0:02:59.4]} 2. d4 {[%clk 0:02:59.1]}
2... Nf6 {[%clk 0:02:59.1]} 3. Nc3 {[%clk 0:02:59.5]} 3... c6 {[%clk 0:02:59]}
4. a4 {[%clk 0:02:56]} 4... Qa5 {[%clk 0:02:57.4]} 5. Bd3 {[%clk 0:02:55.1]}
5... e5 {[%clk 0:02:56.4]} 6. dxe5 {[%clk 0:02:54.1]} 6... dxe5 {[%clk
0:02:55.6]} 7. Ne2 {[%clk 0:02:54.5]} 7... Be7 {[%clk 0:02:52.5]} 8. O-O {[%clk
0:02:54.2]} 8... O-O {[%clk 0:02:52.4]} 9. Be3 {[%clk 0:02:54.8]} 9... Nbd7
{[%clk 0:02:48.9]} 10. h3 {[%clk 0:02:53.1]} 10... Nc5 {[%clk 0:02:45.7]} 11.
Qd2 {[%clk 0:02:48.7]} 11... Rd8 {[%clk 0:02:41.8]} 12. Nd5 {[%clk 0:02:22.3]}
12... Qxd2 {[%clk 0:02:39.8]} 13. Nxe7+ {[%clk 0:02:22.3]} 13... Kf8 {[%clk
0:02:39.4]} 14. Bxd2 {[%clk 0:02:21]} 14... Nxd3 {[%clk 0:02:19.1]} 15. cxd3
{[%clk 0:02:20.4]} 15... Kxe7 {[%clk 0:02:17.4]} 16. Rad1 {[%clk 0:02:04.1]}
16... a5 {[%clk 0:02:13.1]} 17. Bc3 {[%clk 0:02:03]} 17... Nd7 {[%clk 0:02:09]}
18. f4 {[%clk 0:02:02.1]} 18... f6 {[%clk 0:02:06.3]} 19. Ng3 {[%clk 0:02:00.3]}
19... exf4 {[%clk 0:01:57.2]} 20. Rxf4 {[%clk 0:02:01.2]} 20... Ne5 {[%clk
0:01:53.8]} 21. Bxe5 {[%clk 0:01:57.9]} 21... fxe5 {[%clk 0:01:53]} 22. Rf3
{[%clk 0:01:58.6]} 22... g6 {[%clk 0:01:51]} 23. Rdf1 {[%clk 0:01:58.9]} 23...
Be6 {[%clk 0:01:50.5]} 24. Ne2 {[%clk 0:01:51.7]} 24... Rd7 {[%clk 0:01:46.7]}
25. Nc1 {[%clk 0:01:32.1]} 25... Rad8 {[%clk 0:01:41]} 26. Kf2 {[%clk
0:01:29.5]} 26... Rd4 {[%clk 0:01:38.2]} 27. b3 {[%clk 0:01:23.2]} 27... Rb4
{[%clk 0:01:37.5]} 28. Ke2 {[%clk 0:01:19.2]} 28... b5 {[%clk 0:01:35]} 29. axb5
{[%clk 0:01:18.3]} 29... cxb5 {[%clk 0:01:35.1]} 30. Kd2 {[%clk 0:00:57.4]}
30... Rc8 {[%clk 0:01:34.6]} 31. h4 {[%clk 0:00:44.6]} 31... a4 {[%clk
0:01:33.2]} 32. bxa4 {[%clk 0:00:44.3]} 32... bxa4 {[%clk 0:01:33.3]} 33. Ke3
{[%clk 0:00:26.1]} 33... a3 {[%clk 0:01:29.9]} 34. R3f2 {[%clk 0:00:26.5]} 34...
Rb2 {[%clk 0:01:27.6]} 35. Rd2 {[%clk 0:00:19.2]} 35... Rb1 {[%clk 0:01:22.9]}
36. Rdd1 {[%clk 0:00:12.2]} 36... Rc2 {[%clk 0:01:21.1]} 37. d4 {[%clk 0:00:07]}
37... exd4+ {[%clk 0:01:16.5]} 38. Kxd4 {[%clk 0:00:07.9]} 38... a2 {[%clk
0:01:11.2]} 39. Nxa2 {[%clk 0:00:07.7]} 39... Rxd1+ {[%clk 0:01:10.5]} 40. Rxd1
{[%clk 0:00:08.1]} 40... Rxa2 {[%clk 0:01:10.1]} 41. Rg1 {[%clk 0:00:04.5]}
41... Ra4+ {[%clk 0:01:08.7]} 42. Ke3 {[%clk 0:00:04.4]} 42... Kf6 {[%clk
0:01:07.4]} 43. Kf4 {[%clk 0:00:04]} 43... Bf5 {[%clk 0:01:04.8]} 44. Re1 {[%clk
0:00:03.5]} 44... Be6 {[%clk 0:01:04.6]} 45. g4 {[%clk 0:00:02.9]} 45... h6
{[%clk 0:01:02.8]} 46. g5+ {[%clk 0:00:02.9]} 46... hxg5+ {[%clk 0:01:02.9]} 47.
hxg5+ {[%clk 0:00:03.8]} 47... Ke7 {[%clk 0:01:03]} 0-1

[Event "*** Titled Tuesday Blitz"]
[Site "Chess.com"]
[Date "2021.04.27"]
[Round "2"]
[White "Pertinhez76"]
[Black "queen_iryna"]
[Result "0-1"]
[WhiteElo "2104"]
[BlackElo "2386"]
[TimeControl "180+1"]
[EndTime "10:18:16 PDT"]
[Termination "queen_iryna won on time"]

1. d4 {[%clk 0:03:00.9]} 1... d6 {[%clk 0:03:00.9]} 2. e4 {[%clk 0:02:58.9]}
2... Nf6 {[%clk 0:03:00.6]} 3. Nc3 {[%clk 0:02:59.1]} 3... e5 {[%clk 0:03:00.9]}
4. Nge2 {[%clk 0:02:55.6]} 4... Nc6 {[%clk 0:03:00.1]} 5. d5 {[%clk 0:02:49.3]}
5... Ne7 {[%clk 0:03:00.2]} 6. g3 {[%clk 0:02:49.4]} 6... Ng6 {[%clk 0:02:59.7]}
7. Bg2 {[%clk 0:02:49.5]} 7... Bd7 {[%clk 0:02:56.4]} 8. Bg5 {[%clk 0:02:48.1]}
8... h6 {[%clk 0:02:55.4]} 9. Be3 {[%clk 0:02:47.8]} 9... Qc8 {[%clk 0:02:52.4]}
10. h4 {[%clk 0:02:46.5]} 10... h5 {[%clk 0:02:43.7]} 11. a4 {[%clk 0:02:45.2]}
11... Ng4 {[%clk 0:02:42.4]} 12. Bg5 {[%clk 0:02:43.1]} 12... Be7 {[%clk
0:02:32.4]} 13. Bxe7 {[%clk 0:02:40.7]} 13... Nxe7 {[%clk 0:02:33.3]} 14. Qd3
{[%clk 0:02:39.2]} 14... a6 {[%clk 0:02:23.5]} 15. a5 {[%clk 0:02:22.6]} 15...
Ng6 {[%clk 0:02:00.3]} 16. Nd1 {[%clk 0:02:21]} 16... f5 {[%clk 0:01:52.8]} 17.
Ne3 {[%clk 0:02:14.4]} 17... f4 {[%clk 0:01:47.5]} 18. gxf4 {[%clk 0:02:10.1]}
18... Nxf4 {[%clk 0:01:39.7]} 19. Nxf4 {[%clk 0:02:08.9]} 19... exf4 {[%clk
0:01:40.6]} 20. Nxg4 {[%clk 0:01:43.4]} 20... Bxg4 {[%clk 0:01:35.2]} 21. e5
{[%clk 0:01:43.2]} 21... O-O {[%clk 0:01:26.7]} 22. e6 {[%clk 0:01:34.2]} 22...
f3 {[%clk 0:01:18.3]} 23. Bf1 {[%clk 0:01:34]} 23... c6 {[%clk 0:01:05.5]} 24.
c4 {[%clk 0:01:27.2]} 24... cxd5 {[%clk 0:00:59.3]} 25. cxd5 {[%clk 0:01:26.8]}
25... Bxe6 {[%clk 0:00:38.6]} 26. dxe6 {[%clk 0:01:24.6]} 26... Qxe6+ {[%clk
0:00:39.5]} 27. Kd1 {[%clk 0:01:14.7]} 27... Rac8 {[%clk 0:00:31.7]} 28. Bh3
{[%clk 0:01:12.1]} 28... Qe5 {[%clk 0:00:17.5]} 29. Rb1 {[%clk 0:00:04.4]} 29...
Rc5 {[%clk 0:00:15.3]} 30. Re1 {[%clk 0:00:01.9]} 30... Rd5 {[%clk 0:00:14.4]}
0-1